fUST/lending_fUST_20240208
["ID","MTS","AMOUNT","RATE_DAILY","PERIOD"]
[313465644,1707365438343,-155.11323266,0.0002,2]
[313465645,1707365438352,-150.62,0.00020735,2]
[313465646,1707365438362,-13882.36574231,0.00021,2]
[313465647,1707365438371,-9302.99266813,0.00021,2]
[313465648,1707365438379,-200.0,0.0002165,7]
[313465649,1707365438389,-166.666666,0.00021918,2]
[313465650,1707365438398,-295.14403984,0.00022,4]
[313465651,1707365438407,-166.666666,0.00022431,2]
[313465652,1707365438417,-166.666666,0.00022944,2]
[313465653,1707365438426,-6346.12,0.0002298,3]
[313465655,1707365438436,-5288.43,0.0002299,3]
[313465657,1707365438445,-1263.33437611,0.00023,2]
[313465658,1707365438456,-9969.58754808,0.00023,2]
[313465660,1707365438466,-166.666666,0.00023456,2]
[313465662,1707365438475,-280.0,0.00023815,7]
[313465663,1707365438484,-166.666666,0.00023969,2]
[313465665,1707365438494,-1744.64709228,0.00024406,2]
[313465666,1707365438503,-166.666666,0.00024482,2]
[313465667,1707365438512,-1004.15949438,0.00025,2]
[313465669,1707365438522,-612.37032413,0.00026303,2]
[313465670,1707365438532,-3217.87755503,0.00026359,2]
[313465672,1707365438541,-4499.85603163,0.00026359,7]
[313465674,1707365438551,-155.11323266,0.00026359,2]
[313465675,1707365438560,-180.92946771,0.00026412,2]
[313465676,1707365438569,-647.51855103,0.00026442,2]
[313465678,1707365438578,-4811.65998263,0.00026512,2]
[313465679,1707365438587,-5000.0,0.00026512,2]
[313465681,1707365438597,-13737.68882543,0.0002653,2]
[313465683,1707365438606,-5000.0,0.0002653,2]
[313465684,1707365438615,-20174.40262469,0.0002654,2]
[313465686,1707365438625,-500.0,0.00026541,2]
[313465688,1707365438634,-221.52455239,0.00026541,2]
[313465689,1707365438643,-500.0,0.00026541,2]
[313465691,1707365438652,-500.0,0.00026541,2]
[313465692,1707365438661,-500.0,0.00026541,2]
[313465694,1707365438670,-500.0,0.00026541,2]
[313465696,1707365438678,-500.0,0.00026541,2]
[313465697,1707365438688,-500.0,0.00026541,2]
[313465699,1707365438697,-500.0,0.00026541,2]
[313465701,1707365438705,-500.0,0.00026541,2]
[313465702,1707365438714,-500.0,0.00026541,2]
[313465703,1707365438723,-500.0,0.00026541,2]
[313465704,1707365438732,-500.0,0.00026541,2]
[313465705,1707365438741,-500.0,0.00026541,2]
[313465707,1707365438750,-500.0,0.00026541,2]
[313465709,1707365438759,-500.0,0.00026541,2]
[313465710,1707365438768,-500.0,0.00026541,2]
[313465712,1707365438778,-500.0,0.00026541,2]
[313465714,1707365438787,-500.0,0.00026541,2]
[313465715,1707365438796,-500.0,0.00026541,2]
[313465716,1707365438805,-500.0,0.00026541,2]
[313465717,1707365438815,-500.0,0.00026541,2]
[313465718,1707365438824,-500.0,0.00026541,2]
[313465719,1707365438833,-500.0,0.00026541,2]
[313465720,1707365438842,-500.0,0.00026541,2]
[313465721,1707365438851,-500.0,0.00026541,2]
[313465722,1707365438860,-500.0,0.00026541,2]
[313465723,1707365438869,-500.0,0.00026541,2]
[313465724,1707365438879,-500.0,0.00026541,2]
[313465725,1707365438888,-500.0,0.00026541,2]
[313465726,1707365438897,-500.0,0.00026541,2]
[313465727,1707365438906,-500.0,0.00026541,2]
[313465728,1707365438916,-500.0,0.00026541,2]
[313465729,1707365438925,-500.0,0.00026541,2]
[313465730,1707365438934,-500.0,0.00026541,2]
[313465731,1707365438943,-500.0,0.00026541,2]
[313465732,1707365438952,-500.0,0.00026541,2]
[313465733,1707365438962,-500.0,0.00026541,2]
[313465734,1707365438971,-500.0,0.00026541,2]
[313465735,1707365438980,-500.0,0.00026541,2]
[313465736,1707365438992,-500.0,0.00026541,2]
[313465737,1707365439001,-500.0,0.00026541,2]
[313465738,1707365439009,-500.0,0.00026541,2]
[313465739,1707365439019,-500.0,0.00026541,2]
[313465740,1707365439029,-500.0,0.00026541,2]
[313465741,1707365439038,-500.0,0.00026541,2]
[313465742,1707365439047,-500.0,0.00026541,2]
[313465743,1707365439056,-500.0,0.00026541,2]
[313465744,1707365439068,-500.0,0.00026541,2]
[313465745,1707365439077,-500.0,0.00026541,2]
[313465746,1707365439086,-500.0,0.00026541,2]
[313465747,1707365439094,-500.0,0.00026541,2]
[313465748,1707365439104,-458.77939848,0.00026541,2]
[313465749,1707365439113,-500.0,0.00026541,2]
[313465750,1707365439124,-500.0,0.00026541,2]
[313465751,1707365439133,-500.0,0.00026541,2]
[313465752,1707365439142,-500.0,0.00026541,2]
[313465753,1707365439151,-500.0,0.00026541,2]
[313465754,1707365439160,-500.0,0.00026541,2]
[313465755,1707365439169,-500.0,0.00026541,2]
[313465756,1707365439179,-500.0,0.00026541,2]
[313465757,1707365439188,-500.0,0.00026541,2]
[313465758,1707365439197,-500.0,0.00026541,2]
[313465759,1707365439207,-500.0,0.00026541,2]
[313465760,1707365439216,-500.0,0.00026541,2]
[313465761,1707365439225,-500.0,0.00026541,2]
[313465762,1707365439235,-500.0,0.00026541,2]
[313465763,1707365439244,-500.0,0.00026541,2]
[313465764,1707365439254,-650.0,0.00026541,2]
[313465765,1707365439265,-500.0,0.00026541,2]
[313465766,1707365439274,-500.0,0.00026541,2]
[313465767,1707365439283,-500.0,0.00026541,2]
[313465768,1707365439293,-50000.0,0.00026542,2]
[313465769,1707365439302,-50000.0,0.00026542,2]
[313465770,1707365439312,-81494.26425432,0.00026542,2]
[313465771,1707365439321,-5000.0,0.00026542,2]
[313465772,1707365439330,-20060.39879311,0.00026548,2]
[313465773,1707365439339,-5000.0,0.00026548,2]
[313465774,1707365439349,-4338.35802387,0.00026575,2]
[313465775,1707365439358,-11026.69130554,0.000268,2]
[313465776,1707365439367,-355.0,0.000268,2]
[313465777,1707365439377,-1382.75585323,0.00027,2]
[313465778,1707365439386,-18009.24584317,0.000275,2]
[313465779,1707365439395,-856.19130506,0.00027651,2]
[313465780,1707365439405,-13682.5894684,0.00028,2]
[313465781,1707365439422,-1212.5555899,0.00028,2]
[313465809,1707365443014,-261.08056277,0.00018616,2]
[313465811,1707365443023,-16966.67327977,0.00028,2]
[313465813,1707365443036,-1691.06137885,0.00028,2]
[313465949,1707366632103,-155.09615962,0.0002102,2]
[313465951,1707366632112,-481.56201325,0.00021021,2]
[313465953,1707366632124,-155.09615962,0.00021022,2]
[313465954,1707366632134,-120.03750973,0.00021022,2]
[313465958,1707366632158,-35.05864989,0.00021022,2]
[313465960,1707366632167,-155.09615962,0.00021022,4]
[313465963,1707366632176,-1624.49667017,0.00021022,5]
[313466036,1707366641350,-329.7518327,0.00021022,5]
[313466037,1707366641368,-764.32996783,0.00021022,5]
[313466038,1707366641381,-261.08056277,0.00021023,2]
[313466039,1707366641392,-523.68160801,0.00021023,2]
[313466040,1707366641404,-165.938904,0.00021024,2]
[313466041,1707366641415,-571.04766353,0.00021582,2]
[313466042,1707366641431,-3585.15197365,0.00021582,2]
[313466043,1707366641446,-5236.77739971,0.00021582,2]
[313466044,1707366641457,-4922.23846637,0.00021602,2]
[313466062,1707366643480,-10340.27893513,0.00021602,2]
[313466063,1707366643491,-166.666666,0.00021918,2]
[313466064,1707366643501,-326.48350937,0.00022,2]
[313466065,1707366643512,-166.666666,0.00022431,2]
[313466066,1707366643522,-166.666666,0.00022944,2]
[313466067,1707366643533,-9969.58754808,0.00023,2]
[313466068,1707366643544,-166.666666,0.00023456,2]
[313466069,1707366643556,-166.666666,0.00023969,2]
[313466070,1707366643567,-166.666666,0.00024482,2]
[313466071,1707366643577,-2288.18152023,0.00025,3]
[313466072,1707366643588,-155.86066487,0.00025,2]
[313466073,1707366643599,-1004.15949438,0.00025399,2]
[313466074,1707366643610,-1347.90040987,0.000254,2]
[313466075,1707366643620,-155.92080023,0.00026311,2]
[313466076,1707366643631,-155.92080023,0.00026311,2]
[313466077,1707366643642,-162.33712155,0.00026493,2]
[313466078,1707366643653,-4503.01993966,0.00026534,2]
[313466079,1707366643664,-4407.03,0.00026558,3]
[313466080,1707366643675,-3672.52,0.00026558,3]
[313466081,1707366643686,-3500.0,0.00026568,2]
[313466082,1707366643697,-5000.0,0.00026568,2]
[313466083,1707366643708,-5000.0,0.00026568,2]
[313466084,1707366643718,-5000.0,0.00026568,2]
[313466085,1707366643729,-31173.2792763,0.00026568,2]
[313466086,1707366643740,-25282.04476755,0.00026593,2]
[313466087,1707366643751,-5000.0,0.00026604,2]
[313466088,1707366643763,-355.0,0.000268,2]
[313466089,1707366643775,-162.33712155,0.00026962,2]
[313466090,1707366643786,-27011.9,0.00027,2]
[313466091,1707366643798,-1382.75585323,0.00027,2]
[313466092,1707366643809,-162.33712155,0.00027431,2]
[313466093,1707366643820,-770.1404928,0.000278,5]
[313466094,1707366643950,-99915.24928288,0.000279,2]
[313466095,1707366643964,-162.33712155,0.000279,2]
[313466096,1707366643973,-719.86180128,0.000279,2]
[313466097,1707366643983,-5000.0,0.0002799,6]
[313466098,1707366643994,-2475.7635537,0.00027998,2]
[313466099,1707366644003,-500.0,0.00027999,2]
[313466100,1707366644012,-500.0,0.00027999,2]
[313466101,1707366644021,-433.62553083,0.00027999,2]
[313466102,1707366644031,-500.0,0.00027999,2]
[313466103,1707366644040,-500.0,0.00027999,2]
[313466104,1707366644049,-500.0,0.00027999,2]
[313466105,1707366644058,-500.0,0.00027999,2]
[313466106,1707366644067,-500.0,0.00027999,2]
[313466107,1707366644076,-500.0,0.00027999,2]
[313466108,1707366644085,-500.0,0.00027999,2]
[313466109,1707366644094,-500.0,0.00027999,2]
[313466110,1707366644104,-18385.21517796,0.00028,2]
[313466111,1707366644114,-63305.04498236,0.00028,7]
[313466112,1707366644131,-49821.08616482,0.00028,7]
[313466113,1707366644145,-856.35960284,0.00028,7]
[313466358,1707369032568,-155.09615962,0.00018894,2]
[313466360,1707369032578,-261.08056277,0.00018894,2]
[313466361,1707369032587,-155.09615962,0.00018894,3]
[313466362,1707369032596,-1161.16250899,0.00018894,2]
[313466449,1707369041801,-8231.8145279,0.00018894,2]
[313466450,1707369041810,-3449.86424369,0.00018895,2]
[313466488,1707369044494,-3875.03513486,0.00018895,2]
[313466502,1707369044607,-17575.10062145,0.00018895,2]
[313466504,1707369044617,-898.60027325,0.000189,2]
[313466506,1707369044626,-220.259912,0.00019716,2]
[313466508,1707369044635,-208.772155,0.00021918,2]
[313466510,1707369044644,-2411.04,0.00022011,3]
[313466512,1707369044653,-2658.6,0.00022011,3]
[313466514,1707369044663,-2215.5,0.00022011,3]
[313466516,1707369044672,-50000.0,0.00022021,2]
[313466518,1707369044682,-9969.58754808,0.00023,2]
[313466520,1707369044691,-898.60027325,0.000239,2]
[313466522,1707369044700,-208.772155,0.00024482,2]
[313466524,1707369044710,-9130.02875469,0.00025,2]
[313466536,1707369044830,-647.19209226,0.00025,2]
[313466540,1707369044886,-2065.41099088,0.00025,2]
[313466850,1707370237894,-261.08056277,0.00018972,2]
[313466852,1707370237903,-185.0083529,0.00018973,2]
[313466854,1707370237913,-227.288819,0.00018974,2]
[313466856,1707370237922,-155.09615962,0.00021739,4]
[313466858,1707370237931,-162.67281324,0.0002175,2]
[313466860,1707370237941,-5646.12068604,0.00021851,2]
[313466867,1707370238002,-3746.85635085,0.00021851,2]
[313466869,1707370238011,-24900.0,0.00021852,2]
[313466871,1707370238020,-166.666666,0.00021918,2]
[313466873,1707370238030,-295.14403984,0.00022,4]
[313466875,1707370238039,-427.31508471,0.00022,2]
[313466877,1707370238048,-3981.4674439,0.00022,2]
[313466879,1707370238057,-166.666666,0.00022431,2]
[313466881,1707370238068,-998.77745782,0.000229,2]
[313466883,1707370238077,-166.666666,0.00022944,2]
[313466885,1707370238086,-1263.33437611,0.00023,2]
[313466887,1707370238096,-9969.58754808,0.00023,2]
[313466889,1707370238104,-2905.35145241,0.00023121,2]
[313466891,1707370238113,-155.09771156,0.00023225,2]
[313466893,1707370238122,-155.09771156,0.00023225,2]
[313466895,1707370238130,-166.666666,0.00023456,2]
[313466897,1707370238140,-172.7047008,0.0002353,2]
[313466899,1707370238149,-980.14371591,0.00023909,2]
[313466901,1707370238158,-166.666666,0.00023969,2]
[313466903,1707370238167,-200.0,0.00024035,7]
[313466905,1707370238176,-315.1407098,0.00024384,2]
[313466907,1707370238186,-166.666666,0.00024482,2]
[313466909,1707370238195,-162.67281323,0.000249,2]
[313466911,1707370238204,-201.98017239,0.000249,2]
[313466913,1707370238213,-712.6274763,0.00024957,2]
[313466915,1707370238222,-5395.09,0.0002499,3]
[313466917,1707370238231,-224.64715209,0.00024999,2]
[313466919,1707370238240,-6799.80872976,0.00025,2]
[313466921,1707370238250,-155.09615962,0.00025,2]
[313466923,1707370238259,-3253.88603195,0.00025,2]
[313466925,1707370238268,-3697.56699708,0.00025,7]
[313466927,1707370238282,-169958.85954773,0.00025,7]
[313466929,1707370238291,-200.0,0.00025,2]
[313466931,1707370238300,-6300.94053929,0.00025,2]
[313466933,1707370238310,-335.61069179,0.00025,2]
[313466935,1707370238321,-4739.06901527,0.00025,2]
[313466937,1707370238331,-7407.43141525,0.00025,2]
[313466939,1707370238341,-16342.64072087,0.00025,2]
[313466941,1707370238351,-500.0,0.00025057,2]
[313466944,1707370238363,-510.89370596,0.00025057,2]
[313466946,1707370238373,-232.00422812,0.00025057,2]
[313466948,1707370238383,-466.08782316,0.00025057,2]
[313466950,1707370238393,-500.0,0.00025057,2]
[313466951,1707370238402,-479.84674693,0.00025057,2]
[313466954,1707370238411,-500.0,0.00025057,2]
[313466955,1707370238420,-500.0,0.00025057,2]
[313466958,1707370238430,-592.39024017,0.00025057,2]
[313466960,1707370238440,-270.6775118,0.00025057,2]
[313466962,1707370238450,-769.74763106,0.00025057,2]
[313466964,1707370238459,-500.0,0.00025057,2]
[313466965,1707370238468,-500.0,0.00025057,2]
[313466967,1707370238478,-769.74763106,0.00025057,2]
[313466969,1707370238487,-500.0,0.00025057,2]
[313466971,1707370238497,-471.62554063,0.00025057,2]
[313466973,1707370238506,-769.74763106,0.00025057,2]
[313466975,1707370238517,-511.59546166,0.00025057,2]
[313466977,1707370238527,-500.0,0.00025057,2]
[313466980,1707370238537,-500.0,0.00025057,2]
[313466981,1707370238547,-500.0,0.00025057,2]
[313466983,1707370238556,-769.74763106,0.00025057,2]
[313466985,1707370238566,-515.21031646,0.00025057,2]
[313466987,1707370238576,-500.0,0.00025057,2]
[313466989,1707370238585,-769.74763106,0.00025057,2]
[313466991,1707370238594,-769.74763106,0.00025057,2]
[313466993,1707370238603,-500.0,0.00025057,2]
[313466995,1707370238612,-769.74763106,0.00025057,2]
[313466997,1707370238622,-500.0,0.00025057,2]
[313466999,1707370238631,-769.74763106,0.00025057,2]
[313467002,1707370238642,-769.74763106,0.00025057,2]
[313467004,1707370238652,-500.0,0.00025057,2]
[313467006,1707370238661,-769.74763106,0.00025057,2]
[313467008,1707370238671,-500.0,0.00025057,2]
[313467010,1707370238680,-769.74763106,0.00025057,2]
[313467012,1707370238690,-500.0,0.00025057,2]
[313467014,1707370238699,-769.74763106,0.00025057,2]
[313467016,1707370238708,-500.0,0.00025057,2]
[313467018,1707370238717,-769.74763106,0.00025057,2]
[313467020,1707370238726,-500.0,0.00025057,2]
[313467022,1707370238736,-769.74763106,0.00025057,2]
[313467024,1707370238745,-500.0,0.00025057,2]
[313467026,1707370238754,-769.74763106,0.00025057,2]
[313467028,1707370238763,-500.0,0.00025057,2]
[313467030,1707370238772,-769.74763106,0.00025057,2]
[313467031,1707370238781,-769.74763106,0.00025057,2]
[313467033,1707370238791,-769.74763106,0.00025057,2]
[313467035,1707370238800,-500.0,0.00025057,2]
[313467037,1707370238810,-769.74763106,0.00025057,2]
[313467039,1707370238820,-642.86084059,0.00025057,2]
[313467042,1707370238830,-769.74763106,0.00025057,2]
[313467043,1707370238839,-500.0,0.00025057,2]
[313467045,1707370238849,-769.74763106,0.00025057,2]
[313467047,1707370238858,-769.74763106,0.00025057,2]
[313467049,1707370238867,-769.74763106,0.00025057,2]
[313467051,1707370238876,-769.74763106,0.00025057,2]
[313467053,1707370238886,-769.74763106,0.00025057,2]
[313467055,1707370238895,-769.74763106,0.00025057,2]
[313467057,1707370238905,-769.74763106,0.00025057,2]
[313467060,1707370238914,-769.74763106,0.00025057,2]
[313467062,1707370238923,-769.74763106,0.00025057,2]
[313467064,1707370238933,-769.74763106,0.00025057,2]
[313467065,1707370238943,-769.74763106,0.00025057,2]
[313467067,1707370238952,-769.74763106,0.00025057,2]
[313467069,1707370238962,-769.74763106,0.00025057,2]
[313467072,1707370238971,-769.74763106,0.00025057,2]
[313467074,1707370238981,-769.74763106,0.00025057,2]
[313467076,1707370238991,-769.74763106,0.00025057,2]
[313467078,1707370239001,-769.74763106,0.00025057,2]
[313467080,1707370239010,-769.74763106,0.00025057,2]
[313467082,1707370239020,-769.74763106,0.00025057,2]
[313467084,1707370239029,-769.74763106,0.00025057,2]
[313467086,1707370239039,-769.74763106,0.00025057,2]
[313467088,1707370239048,-769.74763106,0.00025057,2]
[313467090,1707370239058,-769.74763106,0.00025057,2]
[313467092,1707370239068,-769.74763106,0.00025057,2]
[313467094,1707370239078,-769.74763106,0.00025057,2]
[313467096,1707370239087,-769.74763106,0.00025057,2]
[313467098,1707370239097,-769.74763106,0.00025057,2]
[313467100,1707370239107,-769.74763106,0.00025057,2]
[313467102,1707370239116,-769.74763106,0.00025057,2]
[313467104,1707370239125,-769.74763106,0.00025057,2]
[313467106,1707370239134,-769.74763106,0.00025057,2]
[313467108,1707370239143,-769.74763106,0.00025057,2]
[313467110,1707370239152,-769.74763106,0.00025057,2]
[313467112,1707370239161,-769.74763106,0.00025057,2]
[313467114,1707370239170,-769.74763106,0.00025057,2]
[313467116,1707370239179,-769.74763106,0.00025057,2]
[313467118,1707370239188,-769.74763106,0.00025057,2]
[313467120,1707370239197,-769.74763106,0.00025057,2]
[313467122,1707370239207,-769.74763106,0.00025057,2]
[313467124,1707370239216,-769.74763106,0.00025057,2]
[313467126,1707370239226,-769.74763106,0.00025057,2]
[313467128,1707370239235,-769.74763106,0.00025057,2]
[313467130,1707370239244,-769.74763106,0.00025057,2]
[313467132,1707370239253,-769.74763106,0.00025057,2]
[313467134,1707370239262,-769.74763106,0.00025057,2]
[313467136,1707370239271,-769.74763106,0.00025057,2]
[313467138,1707370239280,-769.74763106,0.00025057,2]
[313467140,1707370239289,-769.74763106,0.00025057,2]
[313467142,1707370239298,-769.74763106,0.00025057,2]
[313467144,1707370239307,-769.74763106,0.00025057,2]
[313467155,1707370239406,-1371.62011896,0.00025057,2]
[313467157,1707370239416,-1371.62011896,0.00025057,2]
[313467159,1707370239426,-1371.62011896,0.00025057,2]
[313467161,1707370239437,-1371.62011896,0.00025057,2]
[313467163,1707370239446,-1371.62011896,0.00025057,2]
[313467165,1707370239455,-1371.62011896,0.00025057,2]
[313467167,1707370239464,-1371.62011896,0.00025057,2]
[313467169,1707370239473,-1371.62011896,0.00025057,2]
[313467171,1707370239483,-1371.62011896,0.00025057,2]
[313467173,1707370239492,-1371.62011896,0.00025057,2]
[313467175,1707370239501,-1371.62011896,0.00025057,2]
[313467177,1707370239510,-1371.62011896,0.00025057,2]
[313467179,1707370239519,-1371.62011896,0.00025057,2]
[313467181,1707370239528,-1371.62011896,0.00025057,2]
[313467183,1707370239537,-1371.62011896,0.00025057,2]
[313467185,1707370239546,-1371.62011896,0.00025057,2]
[313467187,1707370239555,-1371.62011896,0.00025057,2]
[313467189,1707370239564,-1371.62011896,0.00025057,2]
[313467191,1707370239574,-1371.62011896,0.00025057,2]
[313467193,1707370239584,-151.0,0.00025058,2]
[313467195,1707370239593,-151.0,0.00025058,2]
[313467197,1707370239602,-151.0,0.00025058,2]
[313467199,1707370239612,-151.0,0.00025058,2]
[313467201,1707370239621,-151.0,0.00025058,2]
[313467203,1707370239630,-151.0,0.00025058,2]
[313467205,1707370239639,-257.486937,0.00025058,2]
[313467207,1707370239648,-257.486937,0.00025058,2]
[313467209,1707370239657,-257.486937,0.00025058,2]
[313467210,1707370239666,-257.486937,0.00025058,2]
[313467212,1707370239675,-257.486937,0.00025058,2]
[313467215,1707370239685,-257.486937,0.00025058,2]
[313467218,1707370239705,-1743.613976,0.00025059,2]
[313467220,1707370239715,-1743.613976,0.00025059,2]
[313467222,1707370239727,-1743.613976,0.00025059,2]
[313467224,1707370239737,-1743.613976,0.00025059,2]
[313467226,1707370239746,-1743.613976,0.00025059,2]
[313467228,1707370239756,-1743.613976,0.00025059,2]
[313467230,1707370239767,-899.14023,0.00025059,2]
[313467232,1707370239777,-899.14023,0.00025059,2]
[313467234,1707370239786,-899.14023,0.00025059,2]
[313467236,1707370239795,-899.14023,0.00025059,2]
[313467238,1707370239805,-899.14023,0.00025059,2]
[313467240,1707370239816,-899.14023,0.00025059,2]
[313467243,1707370239826,-151.0,0.00025059,2]
[313467245,1707370239835,-151.0,0.00025059,2]
[313467247,1707370239845,-151.0,0.00025059,2]
[313467249,1707370239854,-151.0,0.00025059,2]
[313467251,1707370239864,-151.0,0.00025059,2]
[313467253,1707370239873,-257.486937,0.00025059,2]
[313467255,1707370239882,-257.486937,0.00025059,2]
[313467257,1707370239892,-899.14023,0.0002506,2]
[313467261,1707370239902,-899.14023,0.0002506,2]
[313467265,1707370239911,-151.0,0.0002506,2]
[313467268,1707370239921,-50000.0,0.00025061,2]
[313467272,1707370239930,-1743.613976,0.00025061,2]
[313467276,1707370239940,-1743.613976,0.00025061,2]
[313467280,1707370239949,-899.14023,0.00025061,2]
[313467283,1707370239959,-899.14023,0.00025061,2]
[313467286,1707370239968,-151.0,0.00025061,2]
[313467289,1707370239978,-151.0,0.00025061,2]
[313467292,1707370239987,-151.0,0.00025061,2]
[313467295,1707370239997,-257.486937,0.00025061,2]
[313467298,1707370240007,-257.486937,0.00025061,2]
[313467301,1707370240016,-856.47151823,0.0002508,2]
[313467304,1707370240026,-157.13828246,0.00025198,2]
[313467307,1707370240035,-307.4096268,0.00025205,2]
[313467309,1707370240045,-312.2387723,0.00025205,2]
[313467311,1707370240054,-306.9182303,0.00025205,2]
[313467313,1707370240064,-312.5508738,0.00025205,2]
[313467315,1707370240074,-326.1507413,0.00025205,2]
[313467317,1707370240083,-326.4520642,0.00025205,2]
[313467319,1707370240093,-309.0134106,0.00025205,2]
[313467320,1707370240102,-199.9537868,0.00025205,2]
[313467321,1707370240111,-199.9537868,0.00025205,2]
[313467322,1707370240120,-199.9537868,0.00025205,2]
[313467323,1707370240129,-199.9537868,0.00025205,2]
[313467324,1707370240139,-199.9537868,0.00025205,2]
[313467325,1707370240148,-201.98017239,0.00025283,2]
[313467326,1707370240157,-201.98017239,0.00025667,2]
[313467327,1707370240167,-151.0,0.00025925,2]
[313467328,1707370240176,-202.5135622,0.00026027,2]
[313467329,1707370240185,-199.9537868,0.00026027,2]
[313467330,1707370240194,-199.9537868,0.00026027,2]
[313467331,1707370240203,-199.9537868,0.00026027,2]
[313467332,1707370240212,-199.9537868,0.00026027,2]
[313467333,1707370240222,-201.98017239,0.0002605,2]
[313467334,1707370240231,-565.79507063,0.00026319,2]
[313467335,1707370240240,-1428.28975353,0.00026319,2]
[313467336,1707370240249,-631.82357591,0.00026334,2]
[313467337,1707370240258,-201.98017239,0.00026433,2]
[313467338,1707370240267,-280.0,0.00026438,15]
[313467339,1707370240276,-151.0,0.0002653,2]
[313467340,1707370240285,-151.0,0.0002653,2]
[313467341,1707370240294,-151.0,0.0002653,2]
[313467342,1707370240303,-151.0,0.0002653,2]
[313467343,1707370240312,-151.0,0.0002653,2]
[313467344,1707370240322,-151.0,0.0002653,2]
[313467345,1707370240331,-151.0,0.0002653,2]
[313467346,1707370240340,-151.0,0.0002653,2]
[313467347,1707370240349,-231.263188,0.0002653,2]
[313467348,1707370240359,-151.0,0.0002653,2]
[313467349,1707370240371,-151.0,0.0002653,2]
[313467351,1707370240380,-151.0,0.00026531,2]
[313467352,1707370240389,-151.0,0.00026531,2]
[313467353,1707370240398,-151.0,0.00026532,2]
[313467355,1707370240409,-5000.0,0.00026533,2]
[313467357,1707370240419,-21333.42802156,0.00026533,2]
[313467359,1707370240428,-154.150751,0.00026533,2]
[313467361,1707370240438,-50000.0,0.00026533,2]
[313467362,1707370240447,-44332.86814731,0.00026533,2]
[313467412,1707370240916,-5269.65452006,0.00026533,2]
[313467414,1707370240929,-299.52893277,0.00026533,2]
[313467649,1707370242995,-1653.4,0.00026533,2]
[313467651,1707370243007,-4049.40041452,0.00026533,2]
[313467656,1707370243050,-1894.49568397,0.00026533,2]
[313467659,1707370243061,-764.76670726,0.00026533,2]
[313467661,1707370243074,-3894.09717996,0.00026533,2]
[313467877,1707370245950,-665.85163854,0.00024433,2]
[313467878,1707370245959,-500.0,0.00025056,2]
[313467879,1707370245969,-500.0,0.00025056,2]
[313467880,1707370245978,-167.9550513,0.00025056,2]
[313467881,1707370245988,-500.0,0.00025056,2]
[313467882,1707370245997,-321.59331039,0.00025056,2]
[313468237,1707371445990,-155.09460771,0.00021492,4]
[313468238,1707371445999,-261.08056277,0.00021493,2]
[313468240,1707371446008,-793.8706,0.00021494,2]
[313468241,1707371446018,-166.666666,0.00021918,2]
[313468242,1707371446027,-427.26832952,0.00022,2]
[313468243,1707371446036,-655.53043129,0.00022,2]
[313468244,1707371446046,-237.387932,0.00022305,2]
[313468245,1707371446055,-166.666666,0.00022431,2]
[313468246,1707371446064,-157.13828246,0.00022549,2]
[313468247,1707371446074,-166.666666,0.00022944,2]
[313468248,1707371446084,-2110.10399171,0.00022985,2]
[313468249,1707371446093,-1263.33437611,0.00023,2]
[313468250,1707371446103,-8191.87777397,0.00023,2]
[313468251,1707371446114,-1777.70977411,0.00023,2]
[313468253,1707371446124,-4416.29022589,0.00023,2]
[313468392,1707371635010,1992.68044299,0.0001631,2]
[313468466,1707372632103,-185.0083529,0.00019236,2]
[313468468,1707372632113,-12077.551048,0.00019237,2]
[313468470,1707372632122,-906.35745615,0.00019539,2]
[313468472,1707372632132,-261.08056277,0.0001954,2]
[313468473,1707372632141,-219.77042,0.00019543,2]
[313468474,1707372632150,-1707.11680099,0.00020454,2]
[313468475,1707372632160,-19138.64568776,0.00020475,2]
[313468477,1707372632169,-21191.1854644,0.00020476,2]